bitfinex-derivatives/quotes_BNBF0:USTF0_20250425
["timestamp","ask_amount","ask_price","bid_price","bid_amount"]
[1745579840971,2.50802182,606.57,606.05,1.017]
[1745579841172,2.50802182,606.56,606.05,1.017]
[1745579841373,2.50802182,606.55,606.05,1.017]
[1745579841566,1.36987927,606.54,606.05,1.017]
[1745579841766,1.36987927,606.53,606.05,1.017]
[1745579841971,1.36987927,606.52,606.05,1.017]
[1745579842172,1.36987927,606.51,606.05,1.017]
[1745579842373,1.36987927,606.5,606.05,1.017]
[1745579842573,1.36987927,606.49,606.05,1.017]
[1745579842770,1.36987927,606.48,606.05,1.017]
[1745579843074,2.50802182,606.47,606.05,1.017]
[1745579843274,1.36987927,606.46,606.05,1.017]
[1745579843475,1.36987927,606.45,606.05,1.017]
[1745579843671,1.36987927,606.44,606.05,1.017]
[1745579843876,1.36987927,606.43,606.05,1.017]
[1745579844073,1.25820987,607.94,606.05,1.017]
[1745579844074,2.50802182,606.42,606.05,1.017]
[1745579844274,1.36987927,606.41,606.05,1.017]
[1745579844575,2.50802182,606.4,606.05,1.017]
[1745579844775,1.36987927,606.39,606.05,1.017]
[1745579844975,1.36987927,606.38,606.05,1.017]
[1745579845275,2.50802182,606.37,606.05,1.017]
[1745579845475,1.36987927,606.36,606.05,1.017]
[1745579845676,1.36987927,606.35,606.05,1.017]
[1745579845870,1.36987927,606.34,606.05,1.017]
[1745579846077,1.36987927,606.33,606.05,1.017]
[1745579846377,2.50802182,606.32,606.05,1.017]
[1745579846578,1.36987927,606.31,606.05,1.017]
[1745579846777,1.36987927,606.3,606.05,1.017]
[1745579846978,2.50802182,606.29,606.05,1.017]
[1745579847174,1.36987927,606.28,606.05,1.017]
[1745579847374,1.36987927,606.27,606.05,1.017]
[1745579847573,1.36987927,606.26,606.05,1.017]
[1745579847771,1.36987927,606.25,606.05,1.017]
[1745579847974,1.36987927,606.24,606.05,1.017]
[1745579848180,1.36987927,606.23,606.05,1.017]
[1745579848372,2.50802182,606.22,606.05,1.017]
[1745579848577,1.36861274,606.21,606.05,1.017]
[1745579848791,1.13814255,606.21,606.05,1.017]
[1745579849173,1.36843717,606.2,606.05,1.017]
[1745579849372,1.13814255,606.19,606.05,1.017]
[1745579850179,1.13814255,606.18,606.05,1.017]
[1745579850475,1.13814255,606.17,606.05,1.017]
[1745579851079,2.50636726,606.16,606.05,1.017]
[1745579851275,1.13814255,606.16,606.05,1.017]
[1745579851478,1.13814255,606.15,606.05,1.017]
[1745579851981,1.13814255,606.14,606.05,1.017]
[1745579852580,1.13814255,606.13,606.05,1.017]
[1745579853078,2.50613705,606.12,606.05,1.017]
[1745579853276,1.13814255,606.12,606.05,1.017]
[1745579853788,1.13814255,606.11,606.05,1.017]
[1745579854288,1.13814255,606.1,606.05,1.017]
[1745579854781,1.13814255,606.09,606.05,1.017]
[1745579855584,1.13814255,606.08,606.05,1.017]
[1745579856085,1.13814255,606.07,606.05,1.017]
[1745579856485,1.13814255,606.06,606.05,1.017]
[1745579858082,1.13814255,606.06,605.94,1.291]
[1745579858487,1.13814255,606.05,605.94,1.291]
[1745579858885,1.13814255,606.04,605.94,1.291]
[1745579859486,1.13814255,606.03,605.94,1.291]
[1745579860181,1.13814255,606.02,605.94,1.291]
[1745579860588,1.13814255,606.01,605.94,1.291]
[1745579861387,1.13814255,606.0,605.94,1.291]
[1745579861890,1.13814255,605.99,605.94,1.291]
[1745579862985,1.13814255,605.98,605.94,1.291]
[1745579863297,1.13814255,605.97,605.94,1.291]
[1745579863988,1.13814255,605.96,605.92,1.304]
[1745579864691,1.13814255,605.95,605.92,1.304]
[1745579865185,1.13814255,605.94,605.92,1.304]
[1745579865786,1.13814255,605.93,605.92,1.304]
[1745579866695,0.28716307,607.28,605.92,1.304]
[1745579866893,1.36818617,607.27,605.92,1.304]
[1745579867088,1.36818617,607.26,605.92,1.304]
[1745579867291,1.36818617,607.25,605.92,1.304]
[1745579867591,1.36818617,607.24,605.92,1.304]
[1745579867894,2.4987952,607.23,605.92,1.304]
[1745579868094,1.36818617,607.22,605.92,1.304]
[1745579868294,1.36818617,607.21,605.92,1.304]
[1745579868490,1.36818617,607.2,605.92,1.304]
[1745579868695,1.36818617,607.19,605.92,1.304]
[1745579868988,2.4987952,607.18,605.92,1.304]
[1745579869192,1.36818617,607.17,605.92,1.304]
[1745579869398,1.36818617,607.16,605.92,1.304]
[1745579869591,2.4987952,607.15,605.92,1.304]
[1745579869795,1.36818617,607.14,605.92,1.304]
[1745579869990,1.36818617,607.13,605.92,1.304]
[1745579870196,1.36818617,607.12,605.92,1.304]
[1745579870389,1.36818617,607.11,605.92,1.304]
[1745579870594,2.4987952,607.1,605.92,1.304]
[1745579870890,1.36818617,607.09,605.92,1.304]
[1745579871089,2.4987952,607.08,605.92,1.304]
[1745579871395,1.36818617,607.07,605.92,1.304]
[1745579871591,2.4987952,607.06,605.92,1.304]
[1745579871795,1.36818617,607.05,605.92,1.304]
[1745579872096,2.4987952,607.04,605.92,1.304]
[1745579872297,1.36818617,607.03,605.92,1.304]
[1745579872596,2.4987952,607.02,605.92,1.304]
[1745579872821,2.4987952,607.01,605.92,1.304]
[1745579873097,1.36818617,607.0,605.92,1.304]
[1745579873297,1.36818617,606.99,605.92,1.304]
[1745579873498,1.36818617,606.98,605.92,1.304]
[1745579873698,1.36818617,606.97,605.92,1.304]
[1745579873897,1.36818617,606.96,605.92,1.304]
[1745579874097,1.36818617,606.95,605.92,1.304]
[1745579874395,2.4987952,606.94,605.92,1.304]
[1745579874599,1.36818617,606.93,605.92,1.304]
[1745579874905,1.36818617,606.92,605.92,1.304]
[1745579875091,2.4987952,606.91,605.92,1.304]
[1745579875294,1.36818617,606.9,605.92,1.304]
[1745579875492,1.3730781,606.89,605.92,1.304]
[1745579875695,1.3730781,606.88,605.92,1.304]
[1745579875894,2.50368713,606.87,605.92,1.304]
[1745579876198,1.3730781,606.86,605.92,1.304]
[1745579876397,1.3730781,606.85,605.92,1.304]
[1745579876597,1.3730781,606.84,605.92,1.304]
[1745579876798,1.3730781,606.83,605.92,1.304]
[1745579876999,1.3730781,606.82,605.92,1.304]
[1745579877297,1.3730781,606.81,605.92,1.304]
[1745579877495,1.3730781,606.8,605.92,1.304]
[1745579877697,2.50368713,606.79,605.92,1.304]
[1745579877899,1.3730781,606.78,605.92,1.304]
[1745579878099,1.3730781,606.77,605.92,1.304]
[1745579878399,2.50368713,606.76,605.92,1.304]
[1745579878599,1.3730781,606.75,605.92,1.304]
[1745579878905,1.3730781,606.74,605.92,2.611]
[1745579879095,2.50368713,606.73,605.92,2.611]
[1745579879301,1.3730781,606.72,605.92,2.611]
[1745579879500,1.3730781,606.71,605.92,2.611]
[1745579879701,1.13060903,606.73,605.92,2.611]
[1745579879702,1.3730781,606.7,605.92,2.611]
[1745579879898,1.3730781,606.69,605.92,2.611]
[1745579880096,1.3730781,606.68,605.92,2.611]
[1745579880295,1.3730781,606.67,605.92,2.611]
[1745579880499,1.3730781,606.66,605.92,2.611]
[1745579880799,2.50368713,606.65,605.92,2.611]
[1745579881095,1.3730781,606.64,605.92,2.611]
[1745579881296,1.3730781,606.63,605.92,2.611]
[1745579881600,1.3730781,606.62,605.92,2.611]
[1745579881800,2.50368713,606.61,605.92,2.611]
[1745579882002,1.3730781,606.6,605.92,2.611]
[1745579882299,1.3730781,606.59,605.92,2.611]
[1745579882501,2.50368713,606.58,605.92,2.611]
[1745579882795,1.3730781,606.57,605.92,2.611]
[1745579882999,2.50368713,606.56,605.92,2.611]
[1745579883199,1.3730781,606.55,605.92,2.611]
[1745579883397,1.3730781,606.54,605.92,2.611]
[1745579883602,1.3730781,606.53,605.92,2.611]
[1745579883904,1.3730781,606.52,605.92,2.611]
[1745579884103,1.3730781,606.51,605.92,2.611]
[1745579884306,1.3730781,606.5,605.92,2.611]
[1745579884506,1.3730781,606.49,605.92,2.611]
[1745579884706,2.50368713,606.48,605.92,2.611]
[1745579884905,1.3730781,606.47,605.92,2.611]
[1745579885104,1.3730781,606.46,605.92,2.611]
[1745579885305,1.3730781,606.45,605.92,2.611]
[1745579885501,2.50368713,606.44,605.92,2.611]
[1745579885701,1.3730781,606.43,605.92,2.611]
[1745579886001,2.50368713,606.42,605.92,2.611]
[1745579886204,1.3730781,606.41,605.92,2.611]
[1745579886407,2.50368713,606.4,605.92,2.611]
[1745579886606,1.25820987,607.44,605.92,2.611]
[1745579886607,2.50368713,606.39,605.92,2.611]
[1745579886805,1.3730781,606.38,605.92,2.611]
[1745579887005,1.3730781,606.37,605.92,2.611]
[1745579887208,1.3730781,606.36,605.92,2.611]
[1745579887508,1.3730781,606.35,605.92,2.611]
[1745579887808,2.50368713,606.34,605.92,2.611]
[1745579888004,1.3730781,606.33,605.92,2.611]
[1745579888208,1.3730781,606.32,605.92,2.611]
[1745579888508,2.50368713,606.31,605.92,2.611]
[1745579888703,2.50368713,606.3,605.92,2.611]
[1745579888902,1.3730781,606.29,605.92,2.611]
[1745579889103,1.3730781,606.28,605.92,2.611]
[1745579889307,2.50368713,606.27,605.92,2.611]
[1745579889508,1.37321637,606.26,605.92,1.307]
[1745579889809,1.37321637,606.25,605.92,1.307]
[1745579890006,1.37321637,606.24,605.92,1.307]
[1745579890204,1.37321637,606.23,605.92,1.307]
[1745579890404,1.37321637,606.22,605.92,1.307]
[1745579890704,1.37321637,606.21,605.92,1.307]
[1745579891010,2.5038254,606.2,605.92,1.307]
[1745579891211,1.37321637,606.19,605.92,1.307]
[1745579891407,2.5038254,606.18,605.92,1.307]
[1745579891613,1.37321637,606.17,605.92,1.307]
[1745579891804,2.5038254,606.16,605.92,1.307]
[1745579892003,1.37321637,606.15,605.92,1.307]
[1745579892210,1.37321637,606.14,605.92,1.307]
[1745579892411,1.37321637,606.13,605.92,1.307]
[1745579892609,1.37321637,606.12,605.92,1.307]
[1745579892810,1.37321637,606.11,605.92,1.307]
[1745579893006,1.37314711,606.1,605.92,1.307]
[1745579893212,1.37314711,606.09,605.92,1.307]
[1745579893406,1.37314711,606.08,605.92,1.307]
[1745579893711,1.37314711,606.07,605.92,1.307]
[1745579893907,1.37314711,606.06,605.92,1.307]
[1745579894110,2.50375614,606.05,605.92,1.307]
[1745579894307,1.37314711,606.04,605.92,1.307]
[1745579894507,2.50375614,606.03,605.92,1.307]
[1745579894809,1.37314711,606.02,605.92,1.307]
[1745579895007,1.37347618,606.01,605.92,1.307]
[1745579895211,1.37347618,606.0,605.92,1.307]
[1745579895407,2.50408521,605.99,605.92,1.307]
[1745579895707,1.37347618,605.98,605.92,1.307]
[1745579895910,2.50408521,605.97,605.92,1.307]
[1745579896206,1.37347618,605.96,605.92,1.307]
[1745579896411,2.50408521,605.96,605.92,1.307]
[1745579896713,1.37347618,605.95,605.46,1.357]
[1745579897512,1.13060903,605.94,605.46,1.357]
[1745579897713,1.37347618,605.93,605.46,1.357]
[1745579897914,1.13060903,605.92,605.47,0.28726144]
[1745579898214,2.50408521,605.91,605.47,0.28726144]
[1745579898410,1.37347618,605.9,605.47,0.28726144]
[1745579898710,1.13060903,605.89,605.47,0.28726144]
[1745579899013,1.37425656,605.88,605.47,0.28726144]
[1745579899214,1.13060903,605.87,605.47,0.28726144]
[1745579899614,2.50517655,605.86,605.46,1.357]
[1745579899810,1.13060903,605.85,605.46,1.357]
[1745579900315,1.13060903,605.84,605.46,1.357]
[1745579900918,1.13060903,605.83,605.47,0.28727448]
[1745579901413,1.13060903,605.82,605.47,0.28727448]
[1745579901917,1.13060903,605.81,605.47,0.28727448]
[1745579902518,1.13060903,605.8,605.47,0.28727448]
[1745579902718,1.13060903,605.79,605.47,0.28727448]
[1745579903217,1.13060903,605.78,605.47,0.28727448]
[1745579903820,1.13060903,605.77,605.47,0.28727448]
[1745579904419,1.13060903,605.76,605.47,0.28727448]
[1745579904617,1.13060903,605.75,605.47,0.28727448]
[1745579904919,1.13060903,605.74,605.47,0.28727448]
[1745579905220,1.13060903,605.73,605.47,0.28727448]
[1745579905521,1.25820987,607.22,605.47,0.28727448]
[1745579905720,1.3762681,607.21,605.46,1.357]
[1745579905920,1.3762681,607.2,605.46,1.357]
[1745579906121,2.51358706,607.19,605.46,1.357]
[1745579906323,1.3762681,607.18,605.46,1.357]
[1745579906523,1.3762681,607.17,605.46,1.357]
[1745579906823,2.51358706,607.16,605.46,1.357]
[1745579907119,1.3762681,607.15,605.47,0.28711213]
[1745579907318,1.3762681,607.14,605.47,0.28711213]
[1745579907518,1.3762681,607.13,605.47,0.28711213]
[1745579907717,1.3762681,607.12,605.47,0.28711213]
[1745579907917,2.51358706,607.11,605.47,0.28711213]
[1745579908124,1.3762681,607.1,605.47,0.28711213]
[1745579908423,2.51358706,607.09,605.47,0.28711213]
[1745579908617,1.3762681,607.08,605.46,1.357]
[1745579908825,2.51358706,607.07,605.46,1.357]
[1745579909020,1.3762681,607.06,605.46,1.357]
[1745579909221,1.3762681,607.05,605.46,1.357]
[1745579909523,1.3762681,607.04,605.46,1.357]
[1745579909718,1.3762681,607.03,605.46,1.357]
[1745579909923,1.3762681,607.02,605.47,0.28711095]
[1745579910122,1.3762681,607.01,605.47,0.28711095]
[1745579910322,1.13731896,607.03,605.47,0.28711095]
[1745579910323,2.51358706,607.0,605.47,0.28711095]
[1745579910519,1.3762681,606.99,605.47,0.28711095]
[1745579910718,1.3762681,606.98,605.47,0.28711095]
[1745579910919,1.3762681,606.97,605.47,0.28711095]
[1745579911123,2.51358706,606.96,605.47,0.28711095]
[1745579911319,1.37783653,606.95,605.47,0.28711095]
[1745579911522,1.37783653,606.94,605.47,0.28711095]
[1745579911824,1.37783653,606.93,605.46,1.357]
[1745579912022,1.37783653,606.92,605.47,0.28712753]
[1745579912224,2.51515549,606.91,605.47,0.28712753]
[1745579912424,1.37783653,606.9,605.47,0.28712753]
[1745579912622,1.37783653,606.89,605.47,0.28712753]
[1745579912822,1.37783653,606.88,605.47,0.28712753]
[1745579913020,1.37783653,606.87,605.47,0.28712753]
[1745579913224,1.37820729,606.86,605.47,0.28712753]
[1745579913524,2.51552625,606.85,605.47,0.28712753]
[1745579913734,1.37820729,606.84,605.47,0.28712753]
[1745579913923,2.51552625,606.83,605.47,0.28712753]
[1745579914123,1.37820729,606.82,605.47,0.28712753]
[1745579914324,2.51552625,606.81,605.47,0.28712753]
[1745579914525,1.37820729,606.8,605.47,0.28712753]
[1745579914722,2.51552625,606.79,605.46,1.357]
[1745579914926,1.37834183,606.78,605.47,0.28714411]
[1745579915225,2.51566079,606.77,605.47,0.28714411]
[1745579915426,1.37834183,606.76,605.47,0.28714411]
[1745579915627,2.51566079,606.75,605.47,0.28714411]
[1745579915825,1.37834183,606.74,605.47,0.28714411]
[1745579916023,1.37834183,606.73,605.47,0.28714411]
[1745579916323,1.37834183,606.72,605.47,0.28714411]
[1745579916624,2.51566079,606.71,605.47,0.28714411]
[1745579916823,2.51566079,606.7,605.47,0.28714411]
[1745579917025,1.37834183,606.69,605.47,0.28714411]
[1745579917223,1.37834183,606.68,605.47,0.28714411]
[1745579917426,2.51566079,606.67,605.47,0.28714411]
[1745579917623,2.51566079,606.67,605.46,1.357]
[1745579917624,1.37834183,606.66,605.46,1.357]
[1745579917924,1.37834183,606.65,605.46,1.357]
[1745579918128,1.37834183,606.64,605.47,0.2871607]
[1745579918328,2.51566079,606.63,605.47,0.2871607]
[1745579918524,1.13731896,606.63,605.47,0.2871607]
[1745579918727,1.37902634,606.62,605.47,0.2871607]
[1745579918928,1.37902634,606.61,605.47,0.2871607]
[1745579919230,1.37902634,606.6,605.48,1.085]
[1745579919524,2.5163453,606.59,605.48,1.085]
[1745579919730,1.37902634,606.58,605.48,1.085]
[1745579919929,1.37902634,606.57,605.48,1.085]
[1745579920225,1.37902634,606.56,605.48,1.085]
[1745579920424,1.37902634,606.55,605.48,1.085]
[1745579920728,1.37902634,606.54,605.48,1.085]
[1745579920929,1.13731896,606.58,605.48,1.085]
[1745579920930,2.5163453,606.53,605.48,1.085]
[1745579921124,1.37902634,606.52,605.48,1.085]
[1745579921429,2.5163453,606.51,605.48,1.085]
[1745579921628,2.5163453,606.5,605.48,1.085]
[1745579921831,1.37902634,606.49,605.48,1.085]
[1745579922029,2.5163453,606.48,605.48,1.085]
[1745579922230,1.37966413,606.47,605.48,1.085]
[1745579922529,2.51698309,606.46,605.48,1.085]
[1745579922830,1.37966413,606.45,605.48,1.085]
[1745579923027,2.51698309,606.44,605.48,1.085]
[1745579923225,1.37966413,606.43,605.48,1.085]
[1745579923526,1.37966413,606.42,605.48,1.085]
[1745579923727,1.37966413,606.41,605.48,1.085]
[1745579924028,1.37966413,606.4,605.49,1.281]
[1745579924231,1.37966413,606.39,605.49,1.281]
[1745579924427,2.51698309,606.38,605.49,1.281]
[1745579924624,1.37966413,606.37,605.49,1.281]
[1745579924826,1.37966413,606.36,605.49,1.281]
[1745579925029,2.51698309,606.35,605.49,1.281]
[1745579925242,2.51698309,606.34,605.49,1.281]
[1745579925426,1.38007897,606.33,605.5,1.044]
[1745579925630,1.38007897,606.32,605.5,1.044]
[1745579925835,1.38007897,606.31,605.5,1.044]
[1745579926033,1.38007897,606.3,605.5,1.044]
[1745579926231,1.38007897,606.29,605.5,1.044]
[1745579926427,1.38007897,606.28,605.5,1.044]
[1745579926631,2.51739793,606.27,605.5,1.044]
[1745579926827,1.38007897,606.26,605.5,1.044]
[1745579927129,1.38007897,606.25,605.5,1.044]
[1745579927328,1.38007897,606.24,605.5,1.044]
[1745579927533,1.38007897,606.23,605.5,1.044]
[1745579927736,1.38007897,606.22,605.5,1.044]
[1745579927935,2.51739793,606.21,605.5,1.044]
[1745579928234,1.38007897,606.2,605.5,1.044]
[1745579928434,2.51739793,606.19,605.5,1.044]
[1745579928739,1.38007897,606.18,605.5,1.044]
[1745579928935,2.51739793,606.17,605.5,1.044]
[1745579929134,1.38007897,606.16,605.5,1.044]
[1745579929333,1.38007897,606.15,605.5,1.044]
[1745579929535,1.38007897,606.14,605.5,1.044]
[1745579929828,2.51739793,606.13,605.5,1.044]
[1745579930030,1.38007897,606.12,605.5,1.044]
[1745579930232,1.38007897,606.11,605.5,1.044]
[1745579930431,1.38007897,606.1,605.5,1.044]
[1745579930635,2.51739793,606.09,605.5,1.044]
[1745579930832,1.38007897,606.08,605.5,1.044]
[1745579931030,2.51739793,606.07,605.5,1.044]
[1745579931234,1.38007897,606.06,605.5,1.044]
[1745579931536,1.38007897,606.05,605.5,1.044]
[1745579931735,1.38007897,606.04,605.5,1.044]
[1745579931934,1.38007897,606.03,605.5,1.044]
[1745579932235,2.51739793,606.02,605.5,1.044]
[1745579932429,1.13731896,606.02,605.5,1.044]
[1745579932829,1.13731896,606.01,605.5,1.044]
[1745579933335,1.13731896,606.0,605.5,1.044]
[1745579934035,1.13731896,605.99,605.5,1.044]
[1745579934731,1.13731896,605.98,605.5,1.044]
[1745579935531,1.13731896,605.97,605.5,1.044]
[1745579936137,1.13731896,605.96,605.5,1.044]
[1745579936839,1.13731896,605.95,605.5,1.044]
[1745579937338,1.13731896,605.94,605.5,1.044]
[1745579937639,1.13731896,605.93,605.5,1.044]
[1745579938133,1.13731896,605.92,605.5,1.044]
[1745579938840,1.13731896,605.91,605.5,1.044]
[1745579939541,1.13731896,605.9,605.5,1.044]
[1745579940443,1.13731896,605.89,605.5,1.044]
[1745579940635,1.25820987,607.61,605.51,0.30308437]
[1745579940843,1.37879357,607.6,605.51,0.30308437]
[1745579941041,1.37879357,607.59,605.5,1.044]
[1745579941241,1.37879357,607.58,605.5,1.044]
[1745579941437,1.37879357,607.57,605.5,1.044]
[1745579941642,1.37879357,607.56,605.5,1.044]
[1745579941843,1.37879357,607.55,605.5,1.044]
[1745579942143,1.37879357,607.54,605.5,1.044]
[1745579942339,1.37879357,607.53,605.5,1.044]
[1745579942543,1.37879357,607.52,605.51,0.30307586]
[1745579942740,1.37879357,607.51,605.51,0.30307586]
[1745579942943,1.37879357,607.5,605.51,0.30307586]
[1745579943143,1.37879357,607.49,605.51,0.30307586]
[1745579943444,2.51725785,607.48,605.51,0.30307586]
[1745579943645,1.37798853,607.47,605.51,0.30307586]
[1745579943847,1.37798853,607.46,605.5,1.044]
[1745579944042,1.37798853,607.45,605.51,0.30307559]
[1745579944246,1.37798853,607.44,605.51,0.30307559]
[1745579944448,1.37798853,607.43,605.51,0.30307559]
[1745579944646,1.37798853,607.42,605.51,0.30307559]
[1745579944843,1.37798853,607.41,605.51,0.30307559]
[1745579945146,2.51725785,607.4,605.51,0.30307559]
[1745579945347,1.37798853,607.39,605.5,1.044]
[1745579945649,1.37798853,607.38,605.51,0.30310045]
[1745579945848,1.37798853,607.37,605.51,0.30310045]
[1745579946045,2.51725785,607.36,605.51,0.30310045]
[1745579946247,1.37798853,607.35,605.51,0.30310045]
[1745579946450,1.37798853,607.34,605.51,0.30310045]
[1745579946651,2.51725785,607.33,605.51,0.30310045]
[1745579946851,1.37798853,607.32,605.5,1.044]
[1745579947049,0.28698191,607.58,605.52,1.058]
[1745579947050,2.51725785,607.31,605.52,1.058]
[1745579947249,1.37798853,607.3,605.52,1.058]
[1745579947447,2.51642659,607.29,605.52,1.058]
[1745579947649,2.51642659,607.28,605.52,1.058]
[1745579947846,1.37715727,607.27,605.52,1.058]
[1745579948050,1.37715727,607.26,605.52,1.058]
[1745579948246,2.51642659,607.25,605.52,1.058]
[1745579948453,2.51642659,607.25,605.32,1.197]
[1745579948651,1.37715727,607.23,605.32,0.3030927]
[1745579948849,2.51642659,607.22,605.32,0.3030927]
[1745579949057,1.37715727,607.21,605.32,0.59015509]
[1745579949250,2.51642659,607.2,605.33,0.3030927]
[1745579949453,1.37715727,607.19,605.33,0.3030927]
[1745579949652,2.51642659,607.18,605.33,0.3030927]
[1745579949854,1.37715727,607.17,605.32,0.28706239]
[1745579950050,1.37715727,607.16,605.33,0.30310436]
[1745579950347,2.51642659,607.15,605.33,0.30310436]
[1745579950548,1.37715727,607.14,605.33,0.30310436]
[1745579950752,1.37715727,607.13,605.32,0.30310436]
[1745579950951,2.51624842,607.12,605.33,0.30310436]
[1745579951251,1.3769791,607.11,605.33,0.30310436]
[1745579951449,1.3769791,607.1,605.33,1.35362586]
[1745579951652,1.3769791,607.09,605.34,0.30310436]
[1745579951850,1.3769791,607.08,605.34,0.30310436]
[1745579952049,2.51624842,607.07,605.34,0.30310436]
[1745579952254,1.3769791,607.06,605.34,0.30310436]
[1745579952454,2.51624842,607.05,605.34,0.30310436]
[1745579952653,1.3769791,607.04,605.34,0.30310436]
[1745579952953,1.37697065,607.03,605.33,1.0505215]
[1745579953152,2.51623997,607.02,605.34,0.30313062]
[1745579953348,1.37697065,607.01,605.34,0.30313062]
[1745579953570,2.51623997,607.0,605.34,0.30313062]
[1745579953753,2.51623997,606.99,605.34,0.30313062]
[1745579953948,1.37697065,606.98,605.34,0.30313062]
[1745579954154,2.51623997,606.97,605.34,0.30313062]
[1745579954354,1.37697065,606.96,605.34,0.30313062]
[1745579954654,1.37697065,606.95,605.35,0.30312364]
[1745579954854,1.37711866,606.94,605.34,0.30312364]
[1745579955055,1.37711866,606.93,605.35,0.30312364]
[1745579955254,1.37711866,606.92,605.36,0.30312364]
[1745579955454,1.37711866,606.91,605.37,0.30312364]
[1745579955754,1.37711866,606.9,605.38,0.30312364]
[1745579955949,1.37711866,606.89,605.34,0.30312364]
[1745579956152,1.37711866,606.88,605.35,0.30312364]
[1745579956455,1.37724286,606.87,605.36,0.30312364]
[1745579956655,1.37724286,606.86,605.34,0.30312364]
[1745579956856,1.37724286,606.85,605.35,0.30312364]
[1745579957155,1.37724286,606.84,605.36,0.30312364]
[1745579957355,1.37724286,606.83,605.35,0.30312364]
[1745579957554,1.37724286,606.82,605.34,0.28711568]
[1745579957756,1.37724286,606.81,605.35,0.30314273]
[1745579957956,1.37724286,606.8,605.35,0.30314273]
[1745579958156,2.51651218,606.79,605.35,0.30314273]
[1745579958359,1.37734758,606.78,605.35,0.30314273]
[1745579958656,1.37734758,606.77,605.35,0.30314273]
[1745579958856,1.13926932,606.79,605.35,0.30314273]
[1745579958857,1.37734758,606.76,605.35,0.30314273]
[1745579959057,1.37734758,606.75,605.35,0.30314273]
[1745579959256,1.37734758,606.74,605.35,0.30314273]
[1745579959458,1.37734758,606.73,605.35,0.30314273]
[1745579959656,2.5166169,606.72,605.35,0.30314273]
[1745579959856,1.37734758,606.71,605.35,0.30314273]
[1745579960054,1.37734758,606.7,605.35,0.30314273]
[1745579960256,2.5166169,606.69,605.34,0.28711568]
[1745579960452,1.37734758,606.68,605.34,0.28711568]
[1745579960654,2.5166169,606.67,605.35,1.061]
[1745579960856,1.37734758,606.66,605.35,1.061]
[1745579961053,2.5166169,606.65,605.36,1.11]
[1745579961253,1.37734758,606.64,605.36,1.11]
[1745579961552,1.37734758,606.63,605.36,1.11]
[1745579961854,1.37734758,606.62,605.36,1.11]
[1745579962052,1.37734758,606.61,605.37,1.047]
[1745579962252,1.37734758,606.6,605.37,2.385]
[1745579962453,1.37734758,606.59,605.37,2.385]
[1745579962651,2.5166169,606.58,605.37,2.385]
[1745579962861,1.37734758,606.57,605.37,2.385]
[1745579963157,2.5166169,606.56,605.37,2.385]
[1745579963357,2.5166169,606.55,605.37,2.385]
[1745579963557,1.37734758,606.54,605.37,2.385]
[1745579963756,1.37734758,606.53,605.37,2.385]
[1745579963957,2.5166169,606.52,605.37,2.385]
[1745579964160,1.37734758,606.51,605.37,2.385]
[1745579964363,1.37734758,606.5,605.37,2.385]
[1745579964560,1.37734758,606.49,605.37,2.385]
[1745579964859,1.37734758,606.48,605.37,2.385]
[1745579965057,1.37734758,606.47,605.37,2.385]
[1745579965255,1.37734758,606.46,605.37,2.385]
[1745579965454,1.37734758,606.45,605.37,2.385]
[1745579965662,1.37734758,606.44,605.37,2.385]
[1745579965856,1.37734758,606.43,605.37,2.385]
[1745579966055,2.5166169,606.42,605.37,2.385]
[1745579966355,2.5166169,606.41,605.37,2.385]
[1745579966559,1.37734758,606.4,605.37,2.385]
[1745579966856,1.37734758,606.39,605.37,2.385]
[1745579967061,2.5166169,606.38,605.37,2.385]
[1745579967360,2.51661832,606.37,605.37,2.385]
[1745579967562,1.377349,606.36,605.37,2.385]
[1745579967757,1.13926932,606.37,605.37,2.385]
[1745579967758,1.377349,606.35,605.37,2.385]
[1745579968060,2.51661832,606.34,605.37,2.385]
[1745579968256,1.377349,606.33,605.37,2.385]